fUSD/lending_fUSD_20260503
["ID","MTS","AMOUNT","RATE_DAILY","PERIOD"]
[421515576,1777804243000,-500.0,0.00036886,7]
[421515573,1777804243000,-500.0,0.00036886,7]
[421515574,1777804243000,-500.0,0.00036886,7]
[421515577,1777804243000,-6.10614864,0.00036886,7]
[421515570,1777804243000,-500.0,0.00036886,7]
[421515575,1777804243000,-500.0,0.00036886,7]
[421515568,1777804243000,-500.0,0.00036886,7]
[421515571,1777804243000,-500.0,0.00036886,7]
[421515569,1777804243000,-500.0,0.00036886,7]
[421515572,1777804243000,-500.0,0.00036886,7]
[421515565,1777804243000,-166.97429469,0.00036886,7]
[421515564,1777804243000,-333.02570531,0.00036886,7]
[421515563,1777804243000,-500.0,0.00036886,7]
[421515562,1777804243000,-500.0,0.00036886,7]
[421515561,1777804243000,-500.0,0.00036886,7]
[421515560,1777804243000,-500.0,0.00036886,7]
[421515559,1777804243000,-500.0,0.00036886,7]
[421515566,1777804243000,-500.0,0.00036886,7]
[421515578,1777804245000,-535.32734454,0.000335,2]
[421515579,1777804245000,-493.89385136,0.00036886,7]
[421515580,1777804245000,-500.0,0.00036886,7]
[421515584,1777804245000,-500.0,0.00036886,7]
[421515583,1777804245000,-500.0,0.00036886,7]
[421515582,1777804245000,-446.7097959,0.00036886,7]
[421515581,1777804245000,-53.2902041,0.00036886,7]
[421515622,1777804246000,-150.0,0.00037176,7]
[421515610,1777804246000,-150.0,0.00036893,7]
[421515611,1777804246000,-1500.0,0.000369,13]
[421515612,1777804246000,-150.0,0.00036933,7]
[421515614,1777804246000,-150.0,0.00036933,7]
[421515613,1777804246000,-150.0,0.00036933,7]
[421515618,1777804246000,-2403.4171,0.00037055,2]
[421515625,1777804246000,-57.39946155,0.00037211,7]
[421515628,1777804246000,-150.0,0.00037322,7]
[421515624,1777804246000,-150.0,0.00037211,7]
[421515633,1777804246000,-150.0,0.00037488,7]
[421515626,1777804246000,-92.60053845,0.00037211,7]
[421515634,1777804246000,-221.51610811,0.00037518,2]
[421515643,1777804246000,-150.0,0.00037581,30]
[421515623,1777804246000,-188.30264233,0.000372,120]
[421515627,1777804246000,-150.0,0.0003729,7]
[421515632,1777804246000,-150.0,0.00037449,7]
[421515631,1777804246000,-150.0,0.00037419,7]
[421515630,1777804246000,-150.0,0.00037369,7]
[421515644,1777804246000,-150.0,0.00037607,7]
[421515641,1777804246000,-109.78911162,0.00037539,2]
[421515639,1777804246000,-901.97472321,0.00037539,2]
[421515635,1777804246000,-150.0,0.00037528,7]
[421515636,1777804246000,-823.88335344,0.00037539,2]
[421515645,1777804246000,-150.0,0.00037662,7]
[421515642,1777804246000,-150.0,0.00037581,7]
[421515616,1777804246000,-150.0,0.00036973,7]
[421515629,1777804246000,-150.0,0.00037322,7]
[421515621,1777804246000,-153.0,0.00037146,30]
[421515597,1777804246000,-500.0,0.00036886,7]
[421515619,1777804246000,-2077.99,0.000371,120]
[421515585,1777804246000,-519.38,0.00036886,7]
[421515586,1777804246000,-500.0,0.00036886,7]
[421515587,1777804246000,-500.0,0.00036886,7]
[421515589,1777804246000,-427.9102041,0.00036886,7]
[421515588,1777804246000,-500.0,0.00036886,7]
[421515590,1777804246000,-72.0897959,0.00036886,7]
[421515591,1777804246000,-500.0,0.00036886,7]
[421515592,1777804246000,-500.0,0.00036886,7]
[421515593,1777804246000,-500.0,0.00036886,7]
[421515594,1777804246000,-500.0,0.00036886,7]
[421515595,1777804246000,-500.0,0.00036886,7]
[421515598,1777804246000,-500.0,0.00036886,7]
[421515596,1777804246000,-500.0,0.00036886,7]
[421515599,1777804246000,-500.0,0.00036886,7]
[421515607,1777804246000,-500.0,0.00036886,7]
[421515602,1777804246000,-500.0,0.00036886,7]
[421515647,1777804246000,-150.0,0.00037687,7]
[421515600,1777804246000,-500.0,0.00036886,7]
[421515604,1777804246000,-500.0,0.00036886,7]
[421515603,1777804246000,-500.0,0.00036886,7]
[421515601,1777804246000,-500.0,0.00036886,7]
[421515606,1777804246000,-500.0,0.00036886,7]
[421515605,1777804246000,-500.0,0.00036886,7]
[421515617,1777804246000,-150.0,0.00037052,7]
[421515620,1777804246000,-150.0,0.00037131,7]
[421515608,1777804246000,-390.24,0.00036886,7]
[421515615,1777804246000,-150.0,0.00036933,7]
[421515609,1777804246000,-500.0,0.00036886,7]
[421515653,1777804246000,-150.0,0.00037766,7]
[421515673,1777804246000,-232.196878,0.0003779,7]
[421515662,1777804246000,-8934.74419438,0.0003779,2]
[421515702,1777804246000,-151.0,0.00038044,7]
[421515694,1777804246000,-232.196878,0.00038,7]
[421515699,1777804246000,-363.15,0.00038034,30]
[421515712,1777804246000,-504.26749732,0.00038231,120]
[421515707,1777804246000,-150.0,0.00038099,7]
[421515710,1777804246000,-150.0,0.00038148,7]
[421515705,1777804246000,-301.13330414,0.00038075,2]
[421515706,1777804246000,-150.0,0.00038083,7]
[421515715,1777804246000,-150.0,0.00038321,7]
[421515714,1777804246000,-150.0,0.00038321,7]
[421515711,1777804246000,-150.0,0.00038163,7]
[421515709,1777804246000,-1715.64042362,0.000381,120]
[421515708,1777804246000,-150.0,0.00038099,7]
[421515696,1777804246000,-232.196878,0.00038,7]
[421515717,1777804246000,-150.0,0.00038391,7]
[421515713,1777804246000,-150.0,0.00038242,7]
[421515718,1777804246000,-150.0,0.00038401,7]
[421515720,1777804246000,-150.0,0.0003848,7]
[421515721,1777804246000,-150.0,0.00038488,7]
[421515729,1777804246000,-400.0,0.0003867,2]
[421515722,1777804246000,-150.0,0.00038559,7]
[421515719,1777804246000,-221.51610811,0.00038456,2]
[421515723,1777804246000,-150.0,0.00038599,7]
[421515725,1777804246000,-150.0,0.00038634,7]
[421515726,1777804246000,-150.0,0.00038639,7]
[421515728,1777804246000,-678.50242852,0.0003867,2]
[421515724,1777804246000,-433.54703849,0.0003863,10]
[421515727,1777804246000,-400.0,0.0003867,2]
[421515716,1777804246000,-2936.66,0.00038359,2]
[421515649,1777804246000,-150.0,0.0003771,7]
[421515698,1777804246000,-150.0,0.00038004,7]
[421515697,1777804246000,-232.196884,0.00038,7]
[421515657,1777804246000,-300.0,0.00037789,10]
[421515655,1777804246000,-151.0,0.00037787,14]
[421515659,1777804246000,-300.0,0.00037789,10]
[421515651,1777804246000,-150.0,0.00037766,7]
[421515665,1777804246000,-61065.57638326,0.0003779,2]
[421515669,1777804246000,-151.0,0.0003779,7]
[421515667,1777804246000,-151.0,0.0003779,7]
[421515671,1777804246000,-151.0,0.0003779,7]
[421515685,1777804246000,-227.89,0.00037898,7]
[421515687,1777804246000,-150.0,0.00037925,7]
[421515686,1777804246000,-150.0,0.00037905,7]
[421515691,1777804246000,-300.0,0.00037999,10]
[421515700,1777804246000,-150.0,0.00038044,7]
[421515684,1777804246000,-150.0,0.00037845,7]
[421515681,1777804246000,-201.09,0.00037828,10]
[421515703,1777804246000,-151.0,0.00038044,7]
[421515695,1777804246000,-232.196878,0.00038,7]
[421515692,1777804246000,-38103.02104256,0.00037999,8]
[421515701,1777804246000,-151.0,0.00038044,7]
[421515704,1777804246000,-18254.2796582,0.00038045,2]
[421515679,1777804246000,-232.196878,0.0003779,7]
[421515693,1777804246000,-50000.0,0.00038,38]
[421515677,1777804246000,-232.196878,0.0003779,7]
[421515688,1777804246000,-836.0,0.00037969,5]
[421515675,1777804246000,-232.196878,0.0003779,7]
[421515689,1777804246000,-151.0,0.00037997,14]
[421515683,1777804246000,-1238.35064309,0.00037838,2]
[421515690,1777804246000,-300.0,0.00037999,10]
[421515733,1777804247000,-271.36870595,0.000387,2]
[421515730,1777804247000,-400.0,0.0003867,2]
[421515736,1777804247000,-7676.25999999,0.000387,2]
[421515737,1777804247000,-94405.90334288,0.000387,2]
[421515731,1777804247000,-400.0,0.0003867,2]
[421515734,1777804247000,-996.0,0.00036886,30]
[421515732,1777804247000,-296303.68880705,0.000387,2]
[421515735,1777804247000,-2998.69849554,0.000387,2]
[421515739,1777804250000,270.88265774,0.000107,2]
[421515751,1777804257000,5000.01,0.000107,2]
[421515752,1777804257000,263.5528914,0.000107,2]
[421515750,1777804257000,10000.01,0.000107,2]
[421515749,1777804257000,10000.01,0.000107,2]
[421515747,1777804257000,10000.01,0.000107,2]
[421515748,1777804257000,10000.01,0.000107,2]
[421515746,1777804257000,10000.01,0.000107,2]
[421515744,1777804257000,2104.80830662,0.000107,2]
[421515745,1777804257000,5000.01,0.000107,2]
[421515742,1777804257000,960.36341299,0.000107,2]
[421515743,1777804257000,1845.29532747,0.000107,2]
[421515753,1777804258000,475.38624602,0.000107,2]
[421515754,1777804258000,3662.64486437,0.000107,2]
[421515755,1777804258000,154012.56729879,0.000107,2]
[421515757,1777804264000,2889.34811091,0.0002989,120]
[421515759,1777804268000,243.61099302,0.0002989,120]
[421515761,1777804760000,3523.42,0.00012,2]
[421515795,1777805245000,-172.81997811,0.00014338,2]
[421515810,1777805345000,-181.79,0.00018865,2]
[421515811,1777805345000,-227.0597568,0.000192,7]
[421515808,1777805345000,-181.79,0.00017356,2]
[421515807,1777805345000,-181.79,0.00016601,2]
[421515809,1777805345000,-181.79,0.00018111,2]
[421515806,1777805345000,-181.79,0.00015847,2]
[421515805,1777805345000,-250.0,0.00015771,2]
[421515804,1777805345000,-152.78919869,0.00015771,2]
[421515803,1777805345000,-181.79,0.00015092,2]
[421515802,1777805345000,-250.0,0.00014715,2]
[421515801,1777805345000,-8.97002189,0.00014338,2]
[421515814,1777805367000,-272.9402432,0.000192,7]
[421515813,1777805367000,-250.0,0.00016601,2]
[421515827,1777805431000,-110.83347366,0.00020731,2]
[421515826,1777805431000,-181.79,0.00020374,2]
[421515825,1777805431000,-181.79,0.0001962,2]
[421515829,1777805432000,-412.44504574,0.00020731,2]
[421515842,1777805438000,-8975.5280194,0.00020773,2]
[421515843,1777805438000,-981.56,0.00020773,2]
[421515841,1777805438000,-12254.99,0.00020773,2]
[421515840,1777805438000,-1200.0,0.00020772,2]
[421515839,1777805438000,-300.0,0.00020772,2]
[421515837,1777805438000,-1770.2019806,0.00020731,2]
[421515838,1777805438000,-152.0,0.00020753,7]
[421516407,1777805442000,-181.79,0.00021129,2]
[421516411,1777805442000,-274.0,0.00021217,2]
[421516409,1777805442000,-500.0,0.00021217,2]
[421516403,1777805442000,-600.0,0.000209,7]
[421516401,1777805442000,-45.8019806,0.00020773,2]
[421516413,1777805442000,-1981.4080194,0.00021218,2]
[421516405,1777805442000,-200.0,0.00020996,2]
[421516459,1777805443000,-706.02723324,0.00021218,2]
[421516457,1777805443000,-16.86826836,0.00021218,2]
[421516454,1777805443000,-2483.13173164,0.00021218,2]
[421516452,1777805443000,-1723.6640806,0.00021218,2]
[421516667,1777805446000,-994.81266676,0.00021218,2]
[421516669,1777805446000,-311.5310756,0.00021308,2]
[421516668,1777805446000,-309.58766079,0.00021218,2]
[421516680,1777805636000,-531.176967,0.00020731,2]
[421516686,1777805652000,-231.176967,0.00020731,2]
[421516685,1777805652000,-300.0,0.0002073,2]
[421516698,1777806105000,162.7,0.00028886,120]
[421516697,1777806105000,162.7,0.00025275,120]
[421516704,1777806357000,-156.75,0.00015935,2]
[421516705,1777806357000,-156.75,0.00016998,2]
[421516708,1777806357000,-156.75,0.0001806,2]
[421516707,1777806357000,-152.0,0.0001771,7]
[421516706,1777806357000,-152.0,0.00017705,7]
[421516711,1777806357000,-156.75,0.00020185,2]
[421516712,1777806357000,-152.69232228,0.000206,28]
[421516710,1777806357000,-500.0,0.000192,7]
[421516713,1777806357000,-231.06601429,0.00020631,2]
[421516714,1777806357000,-1.38667733,0.00020631,2]
[421516709,1777806357000,-156.75,0.00019122,2]
[421516717,1777806440000,-855.0,0.0002072,2]
[421516718,1777806440000,-553.18532133,0.00020721,2]
[421516715,1777806440000,-266.27699494,0.00020631,2]
[421516716,1777806440000,-309.58766079,0.00020631,2]
[421516729,1777806631000,-3117.0845357,0.00020629,2]
[421516730,1777806632000,-1113.74059227,0.00020631,2]
[421516732,1777806632000,-2044.34700891,0.00020631,2]
[421516731,1777806632000,-503.70314734,0.00020631,2]
[421516747,1777806638000,-207.95941287,0.00020631,2]
[421516748,1777806638000,-106.74598685,0.00020631,2]
[421516745,1777806638000,-2480.69075194,0.00020631,2]
[421516746,1777806638000,-2173.41109954,0.00020631,2]
[421516759,1777806640000,-1415.41620489,0.00020721,2]
[421516757,1777806640000,-554.59764202,0.00020721,2]
[421516758,1777806640000,-875.50000001,0.00020721,2]
[421516756,1777806640000,-2742.37269276,0.00020721,2]
[421516754,1777806640000,-134.14609921,0.00020631,2]
[421516755,1777806640000,-7657.45390079,0.00020721,2]
[421516753,1777806640000,-0.00521901,0.00020631,2]
[421516769,1777806643000,-1374.43935149,0.00020721,2]
[421516770,1777806643000,-500.0,0.0002073,2]
[421516771,1777806643000,-51.82116651,0.0002073,2]
[421516832,1777806646000,-1000.0,0.000232,7]
[421516817,1777806646000,-156.75,0.00021247,2]
[421516818,1777806646000,-500.0,0.00021317,2]
[421516821,1777806646000,-1328.73091751,0.00021553,2]
[421516814,1777806646000,-480.41256657,0.00021186,2]
[421516822,1777806646000,-118.01320292,0.00021553,2]
[421516823,1777806646000,-162.7,0.00021664,2]
[421516813,1777806646000,-569.14,0.00021081,2]
[421516819,1777806646000,-500.0,0.00021317,2]
[421516816,1777806646000,-511328.64,0.00021196,2]
[421516812,1777806646000,-1200.0,0.000209,7]
[421516820,1777806646000,-491.01681158,0.00021317,2]
[421516825,1777806646000,-250.0,0.00021961,2]
[421516836,1777806646000,-156.75,0.00024434,2]
[421516835,1777806646000,-181.79,0.00024147,2]
[421516824,1777806646000,-181.79,0.00021884,2]
[421516827,1777806646000,-181.79,0.00022638,2]
[421516828,1777806646000,-1023.51361166,0.00022694,2]
[421516826,1777806646000,-156.75,0.00022309,2]
[421516830,1777806646000,-207.9594128,0.00022894,2]
[421516815,1777806646000,-300.0,0.00021195,2]
[421516810,1777806646000,-312.0,0.00020731,2]
[421516797,1777806646000,-500.0,0.0002073,2]
[421516807,1777806646000,-1024.48749768,0.0002073,2]
[421516787,1777806646000,-448.17883349,0.0002073,2]
[421516788,1777806646000,-218.49118407,0.0002073,2]
[421516789,1777806646000,-281.50881593,0.0002073,2]
[421516790,1777806646000,-263.27145559,0.0002073,2]
[421516794,1777806646000,-500.0,0.0002073,2]
[421516792,1777806646000,-500.0,0.0002073,2]
[421516793,1777806646000,-500.0,0.0002073,2]
[421516791,1777806646000,-500.0,0.0002073,2]
[421516795,1777806646000,-500.0,0.0002073,2]
[421516796,1777806646000,-500.0,0.0002073,2]
[421516799,1777806646000,-500.0,0.0002073,2]
[421516798,1777806646000,-500.0,0.0002073,2]
[421516801,1777806646000,-381.31477712,0.0002073,2]
[421516811,1777806646000,-600.0,0.000208,7]
[421516802,1777806646000,-207.85701612,0.0002073,2]
[421516800,1777806646000,-500.0,0.0002073,2]
[421516803,1777806646000,-500.0,0.0002073,2]
[421516804,1777806646000,-321.3122305,0.0002073,2]
[421516805,1777806646000,-156.65597359,0.0002073,2]
[421516831,1777806646000,-240.89730504,0.00022894,2]
[421516806,1777806646000,-40.83442991,0.0002073,2]
[421516808,1777806646000,-1196.84850232,0.0002073,2]
[421516829,1777806646000,-295.42044072,0.00022694,2]
[421516809,1777806646000,-764883.990366,0.00020731,2]
[421516833,1777806646000,-156.75,0.00023372,2]
[421516864,1777806646000,-996.0,0.00030447,30]
[421516863,1777806646000,-156.75,0.00029746,2]
[421516861,1777806646000,-207.9594128,0.00029682,2]
[421516866,1777806646000,-303.0,0.00030447,30]
[421516871,1777806646000,-2000.0,0.000311,7]
[421516877,1777806646000,-184.53158703,0.000316,2]
[421516873,1777806646000,-157.0,0.00031151,30]
[421516874,1777806646000,-154.0,0.00031155,30]
[421516875,1777806646000,-184.53158704,0.000316,2]
[421516869,1777806646000,-507.0,0.00030913,6]
[421516879,1777806646000,-156.75,0.00031871,2]
[421516868,1777806646000,-156.75,0.00030808,2]
[421516887,1777806646000,-465.35,0.000319,7]
[421516883,1777806646000,-30081.77,0.000319,7]
[421516889,1777806646000,-207.9594128,0.00031945,2]
[421516896,1777806646000,-157.0,0.00032151,30]
[421516893,1777806646000,-1000.0,0.00032,5]
[421516898,1777806646000,-162.7,0.00032496,120]
[421516885,1777806646000,-672.51,0.000319,7]
[421516900,1777806646000,-157.0,0.00033151,30]
[421516834,1777806646000,-181.79,0.00023393,2]
[421516862,1777806646000,-240.89730504,0.00029682,2]
[421516860,1777806646000,-156.75,0.00028683,2]
[421516891,1777806646000,-240.89730504,0.00031945,2]
[421516856,1777806646000,-156.75,0.00027621,2]
[421516851,1777806646000,-207.9594128,0.00027419,2]
[421516837,1777806646000,-181.79,0.00024902,2]
[421516839,1777806646000,-240.89730504,0.00025157,2]
[421516838,1777806646000,-207.9594128,0.00025157,2]
[421516840,1777806646000,-156.75,0.00025496,2]
[421516844,1777806646000,-156.75,0.00026559,2]
[421516843,1777806646000,-181.79,0.00026411,2]
[421516845,1777806646000,-1500.0,0.000271,7]
[421516841,1777806646000,-181.79,0.00025657,2]
[421516847,1777806646000,-181.79,0.00027166,2]
[421516842,1777806646000,-1222.512,0.0002612,2]
[421516849,1777806646000,-402.0,0.00027173,2]
[421516846,1777806646000,-507.0,0.00027137,2]
[421516855,1777806646000,-465.35,0.000276,7]
[421516857,1777806646000,-1350.0,0.00027918,2]
[421516853,1777806646000,-30081.77,0.000276,7]
[421516850,1777806646000,-405.0,0.00027173,2]
[421516852,1777806646000,-240.89730504,0.00027419,2]
[421516848,1777806646000,-406.0,0.00027173,2]
[421516859,1777806646000,-181.79,0.00028675,2]
[421516854,1777806646000,-672.51,0.000276,7]
[421516858,1777806646000,-181.79,0.0002792,2]
[421516939,1777806647000,-2000.0,0.000351,7]
[421516938,1777806647000,-465.35,0.00035,30]
[421516943,1777806647000,-150.0,0.00035675,7]
[421516930,1777806647000,-150.0,0.00034989,7]
[421516936,1777806647000,-30081.77,0.00035,7]
[421516932,1777806647000,-150.0,0.00034989,7]
[421516934,1777806647000,-408.0,0.00034999,2]
[421516946,1777806647000,-167.39991097,0.00036151,30]
[421516947,1777806647000,-150.0,0.00036285,7]
[421516944,1777806647000,-150.0,0.00035904,7]
[421516950,1777806647000,-207.9594128,0.0003647,2]
[421516945,1777806647000,-150.0,0.00036132,7]
[421516949,1777806647000,-150.0,0.00036361,7]
[421516942,1777806647000,-150.0,0.00035446,7]
[421516952,1777806647000,-30081.77,0.000365,7]
[421516948,1777806647000,-224.483471,0.00036339,21]
[421516940,1777806647000,-157.0,0.00035151,30]
[421516914,1777806647000,-507.0,0.00034689,10]
[421516937,1777806647000,-672.51,0.00035,30]
[421516954,1777806647000,-465.35,0.000365,30]
[421516902,1777806647000,-384.0,0.0003318,5]
[421516904,1777806647000,-157.0,0.00034151,30]
[421516906,1777806647000,-167.57,0.00034198,10]
[421516908,1777806647000,-837.9,0.00034198,10]
[421516922,1777806647000,-150.0,0.00034989,7]
[421516910,1777806647000,-207.9594128,0.00034208,2]
[421516912,1777806647000,-240.89730504,0.00034208,2]
[421516916,1777806647000,-150.0,0.00034989,30]
[421516920,1777806647000,-150.0,0.00034989,7]
[421516918,1777806647000,-150.0,0.00034989,7]
[421516923,1777806647000,-215.16938307,0.00034989,7]
[421516925,1777806647000,-150.0,0.00034989,7]
[421516927,1777806647000,-150.0,0.00034989,7]
[421516941,1777806647000,-150.0,0.00035218,7]
[421516928,1777806647000,-150.0,0.00034989,7]
[421516953,1777806647000,-672.51,0.000365,30]
[421516951,1777806647000,-240.89730504,0.0003647,2]
[421516956,1777806647000,-150.0,0.00036819,7]
[421516975,1777806647000,-200.0,0.00037853,6]
[421516958,1777806647000,-975.1648164,0.00037042,2]
[421516977,1777806647000,-150.0,0.00037962,7]
[421516980,1777806647000,-501.6718281,0.0003812,5]
[421516985,1777806647000,-7954.65087534,0.000385,15]
[421516983,1777806647000,-150.0,0.00038419,7]
[421516979,1777806647000,-9989.0,0.00038,90]
[421516981,1777806647000,-150.0,0.00038191,7]
[421516982,1777806647000,-1468.33,0.00038359,2]
[421516984,1777806647000,-507.0,0.00038465,14]
[421516987,1777806647000,-150.0,0.00038648,7]
[421516986,1777806647000,-181.6531785,0.00038604,2]
[421516988,1777806647000,-66423.68105611,0.000387,2]
[421516989,1777806647000,-339.39253979,0.000387,2]
[421516990,1777806647000,-559.6050405,0.000387,2]
[421516976,1777806647000,-24789.000001,0.000379,7]
[421516973,1777806647000,-150.0,0.00037733,7]
[421516978,1777806647000,-1831.98612652,0.00037969,5]
[421516967,1777806647000,-8565.75555911,0.00037487,7]
[421516991,1777806647000,-12430.712656,0.000387,2]
[421516960,1777806647000,-150.0,0.00037047,7]
[421516955,1777806647000,-150.0,0.0003659,7]
[421516959,1777806647000,-3199.7998394,0.00037042,2]
[421516972,1777806647000,-150.0,0.00037581,7]
[421516962,1777806647000,-96527.3706287,0.00037081,2]
[421516961,1777806647000,-366.53815918,0.0003708,10]
[421516964,1777806647000,-150.0,0.00037276,7]
[421516957,1777806647000,-4408.4659594,0.00037042,2]
[421516965,1777806647000,-695.5155716,0.0003745,2]
[421516966,1777806647000,-151.0,0.00037487,7]
[421516963,1777806647000,-151.0,0.00037081,7]
[421516970,1777806647000,-150.0,0.00037505,7]
[421516969,1777806647000,-151.0,0.00037487,7]
[421516968,1777806647000,-1280.88388878,0.00037487,7]
[421516971,1777806647000,-1223.76479218,0.00037539,2]
[421516974,1777806647000,-871.43542938,0.00037805,2]
[421516992,1777806668000,308.75,7.945e-05,2]
[421517006,1777807558000,-993.31840765,0.00020218,2]
[421517004,1777807558000,-157.12,0.00018741,2]
[421517005,1777807558000,-500.0,0.000192,7]
[421517003,1777807558000,-504.96295908,0.00017269,7]
[421517007,1777807609000,-783.75059235,0.00020218,2]
[421517008,1777807609000,-222.0,0.00020218,2]
[421517009,1777807609000,-884.2824,0.00020531,2]
[421517010,1777807609000,-283.81557543,0.00020531,2]
[421517011,1777807609000,-177.21288652,0.00020531,2]
[421517012,1777807609000,-270.8892032,0.00020531,2]
[421517013,1777807609000,-56.41991695,0.00020531,2]
[421517014,1777807636000,-231.178226,0.00015,2]
[421517015,1777807638000,-300.0,0.00015,2]
[421517018,1777807749000,-4944.88814521,0.0001499,2]
[421517020,1777807749000,-57432.02909479,0.00015,2]
[421517019,1777807749000,-300.0,0.00014999,2]
[421517021,1777807754000,-8934.99124,0.00015,2]
[421517023,1777807763000,-420.0,0.00016416,2]
[421517022,1777807763000,-5007.58405141,0.00015,2]
[421517024,1777807763000,-257.0,0.00017966,2]
[421517028,1777807795000,368.59,0.00017841,2]
[421517027,1777807795000,368.59,0.00016991,2]
[421517026,1777807795000,368.59,0.00016142,2]
[421517029,1777807796000,368.59,0.00018691,2]
[421517030,1777807800000,5843.1548589,0.0003,120]
[421517032,1777807812000,1529.67197955,0.00012,2]
[421517031,1777807812000,398.28672413,0.00012,2]
[421517034,1777807812000,10000.01,0.00012,2]
[421517035,1777807812000,5000.01,0.00012,2]
[421517037,1777807812000,5000.01,0.00012,2]
[421517036,1777807812000,5000.01,0.00012,2]
[421517033,1777807812000,10000.01,0.00012,2]
[421517038,1777807813000,264485.1595538,0.00012,2]
[421517063,1777807832000,-112.1869362,0.00020531,2]
[421517062,1777807832000,-1088.98126141,0.00020531,2]
[421517061,1777807832000,-823345.36934285,0.00020531,2]
[421517064,1777807832000,-1200.0,0.00020629,2]
[421517060,1777807832000,-2287.51677326,0.00020531,2]
[421517058,1777807832000,-3058.63601826,0.00020531,2]
[421517059,1777807832000,-464.72178409,0.00020531,2]
[421517054,1777807832000,-1363.9028499,0.00020531,2]
[421517056,1777807832000,-250.0,0.00020531,2]
[421517055,1777807832000,-1403.8382809,0.00020531,2]
[421517053,1777807832000,-673.97872682,0.00020531,2]
[421517052,1777807832000,-7907.68836957,0.00020531,2]
[421517051,1777807832000,-368.59,0.0002039,2]
[421517050,1777807832000,-368.59,0.0001954,2]
[421517066,1777807832000,-487.06099065,0.0002063,2]
[421517057,1777807832000,-1248.86929294,0.00020531,2]
[421517068,1777807832000,-500.0,0.0002063,2]
[421517085,1777807832000,-303.72702952,0.0002063,2]
[421517065,1777807832000,-500.0,0.0002063,2]
[421517076,1777807832000,-500.0,0.0002063,2]
[421517083,1777807832000,-500.0,0.0002063,2]
[421517081,1777807832000,-22.12832629,0.0002063,2]
[421517084,1777807832000,-24.17387371,0.0002063,2]
[421517077,1777807832000,-500.0,0.0002063,2]
[421517079,1777807832000,-477.87167371,0.0002063,2]
[421517088,1777807832000,-207.85701612,0.0002063,2]
[421517086,1777807832000,-172.09909677,0.0002063,2]
[421517092,1777807832000,-13.69736311,0.0002063,2]
[421517073,1777807832000,-500.0,0.0002063,2]
[421517072,1777807832000,-500.0,0.0002063,2]
[421517067,1777807832000,-500.0,0.0002063,2]
[421517075,1777807832000,-604.95997162,0.0002063,2]
[421517070,1777807832000,-458.86035954,0.0002063,2]
[421517071,1777807832000,-41.13964046,0.0002063,2]
[421517069,1777807832000,-500.0,0.0002063,2]
[421517078,1777807832000,-500.0,0.0002063,2]
[421517134,1777807838000,-900.0,0.00022555,2]
[421517135,1777807838000,-368.59,0.00022938,2]
[421517133,1777807838000,-368.59,0.00022089,2]
[421517132,1777807838000,-368.59,0.00021239,2]
[421517137,1777807838000,-157.12,0.00023427,2]
[421517136,1777807838000,-1000.0,0.000232,7]
[421517138,1777807838000,-168.60685308,0.00023512,2]
[421517130,1777807838000,-1000.0,0.000209,7]
[421517131,1777807838000,-157.12,0.00021084,2]
[421517129,1777807838000,-500.0,0.000208,7]